bitfinex/quotes_SOLUSD_20250902
["timestamp","ask_amount","ask_price","bid_price","bid_amount"]
[1756789114559,0.1,203.2,203.19,18.51709605]
[1756789115053,0.1,203.2,203.19,19.16709605]
[1756789115358,0.1,203.2,203.19,21.40743386]
[1756789115766,0.1,203.2,203.19,95.40743386]
[1756789120666,0.1,203.2,203.19,97.37918886]
[1756789123669,0.1,203.2,203.19,95.40743386]
[1756789123865,0.39,203.2,203.19,112.02]
[1756789124069,0.1,203.2,203.19,125.61559401]
[1756789124269,0.1,203.2,203.19,128.53593182]
[1756789124472,0.1,203.2,203.19,133.45743386]
[1756789125247,0.1,203.2,203.19,87.59559401]
[1756789125451,0.1,203.2,203.19,125.61559401]
[1756789125664,0.1,203.2,203.19,130.53709605]
[1756789132061,0.1,203.2,203.19,131.21709605]
[1756789133068,0.1,203.2,203.19,133.45743386]
[1756789134077,0.1,203.2,203.19,131.21709605]
[1756789134388,0.1,203.2,203.19,133.45743386]
[1756789135294,0.1,203.2,203.19,131.21709605]
[1756789135585,0.1,203.2,203.19,133.45743386]
[1756789143593,0.1,203.2,203.19,134.70844426]
[1756789144389,0.1,203.2,203.19,131.21709605]
[1756789144711,0.1,203.2,203.19,134.70844426]
[1756789145506,0.1,203.2,203.19,136.68010226]
[1756789145709,1e-08,203.2,203.19,136.68010226]
[1756789146008,1e-08,203.2,203.19,62.68010226]
[1756789146215,1e-08,203.2,203.19,63.17225246]
[1756789146589,1e-08,203.2,203.19,62.68010226]
[1756789147190,1e-08,203.2,203.19,66.17145047]
[1756789147399,1e-08,203.23,203.22,39.59559401]
[1756789147594,1e-08,203.23,203.22,81.10694222]
[1756789147818,1e-08,203.23,203.22,81.76694222]
[1756789147986,1e-08,203.23,203.22,78.27559401]
[1756789148192,1e-08,203.23,203.22,96.55145822]
[1756789148887,1e-08,203.23,203.22,170.55145822]
[1756789149410,1e-08,203.23,203.22,175.47223373]
[1756789153193,0.29,203.35,203.27,13.59559401]
[1756789153521,0.29,203.35,203.31,3.49134821]
[1756789153831,0.29,203.35,203.32,38.0]
[1756789154125,8.84396869,203.42,203.32,38.0]
[1756789154320,0.29,203.41,203.32,38.0]
[1756789154514,0.29,203.4,203.32,38.0]
[1756789154706,0.29,203.39,203.32,38.0]
[1756789154904,0.29,203.38,203.34,13.59559401]
[1756789155109,0.29,203.38,203.35,41.49134821]
[1756789155313,0.29,203.42,203.38,13.59559401]
[1756789155512,0.29,203.42,203.39,38.0]
[1756789156026,0.29,203.42,203.4,13.59559401]
[1756789156221,0.29,203.41,203.38,13.59559401]
[1756789156522,0.29,203.43,203.39,51.59559401]
[1756789156706,0.29,203.43,203.4,74.0]
[1756789156913,26.0,203.45,203.4,74.0]
[1756789156914,0.29,203.42,203.4,74.0]
[1756789157108,26.0,203.45,203.41,38.02]
[1756789157314,0.29,203.44,203.41,38.02]
[1756789157515,0.29,203.43,203.41,38.02]
[1756789157900,0.29,203.42,203.4,74.0]
[1756789158106,0.29,203.41,203.39,38.02]
[1756789158714,43.20165309,203.47,203.39,38.02]
[1756789158925,0.29,203.43,203.39,38.02]
[1756789159914,0.29,203.42,203.39,38.02]
[1756789160108,0.29,203.44,203.39,38.02]
[1756789160313,0.29,203.44,203.4,13.59559401]
[1756789160613,0.29,203.44,203.41,38.02]
[1756789161033,0.29,203.46,203.41,112.68]
[1756789161235,0.06,203.43,203.42,14.25559401]
[1756789161624,0.06,203.43,203.42,13.59559401]
[1756789163536,0.06,203.43,203.41,74.0]
[1756789164065,0.06,203.43,203.42,38.08]
[1756789164419,0.06,203.43,203.41,74.0]
[1756789164634,0.06,203.43,203.42,38.08]
[1756789168769,0.06,203.43,203.42,38.06]
[1756789168941,0.06,203.43,203.42,38.04]
[1756789169757,0.35,203.43,203.4,38.04]
[1756789170164,0.06,203.43,203.4,38.04]
[1756789170341,0.06,203.43,203.4,38.7]
[1756789170946,0.06,203.43,203.4,0.66]
[1756789171142,0.06,203.43,203.4,38.7]
[1756789172060,0.06,203.43,203.4,112.7]
[1756789172567,0.29,203.42,203.36,38.04]
[1756789172752,0.29,203.41,203.36,38.04]
[1756789172948,0.29,203.4,203.36,38.04]
[1756789173361,0.29,203.39,203.36,38.04]
[1756789173759,5.20671637,203.39,203.36,38.04]
[1756789173961,0.29,203.38,203.34,38.76]
[1756789174354,0.29,203.38,203.31,18.51416411]
[1756789174557,0.29,203.37,203.31,0.66]
[1756789174760,0.29,203.36,203.31,38.1]
[1756789174957,26.29,203.36,203.31,38.76]
[1756789175267,26.0,203.36,203.27,4.91956511]
[1756789175451,0.29,203.36,203.31,74.71]
[1756789175847,26.0,203.37,203.32,0.71]
[1756789176053,26.0,203.37,203.33,0.71]
[1756789176263,31.20666256,203.39,203.33,0.71]
[1756789176666,26.0,203.36,203.31,74.0]
[1756789176874,0.29,203.36,203.31,74.71]
[1756789177250,0.29,203.36,203.31,74.0]
[1756789177471,26.0,203.38,203.32,0.71]
[1756789177773,26.0,203.36,203.32,0.71]
[1756789178373,30.91735564,203.37,203.32,0.71]
[1756789178579,0.29,203.36,203.31,74.0]
[1756789178762,0.29,203.35,203.31,74.0]
[1756789180473,5.20781935,203.35,203.31,74.0]
[1756789181080,4.91781935,203.35,203.31,74.0]
[1756789181287,4.91781935,203.35,203.31,74.71]
[1756789181775,5.20781935,203.35,203.3,38.1]
[1756789181965,4.91781935,203.35,203.31,0.71]
[1756789182766,14.783787,203.38,203.31,0.71]
[1756789183080,26.29,203.39,203.31,0.71]
[1756789183289,26.0,203.37,203.31,0.71]
[1756789183784,30.91716926,203.37,203.31,5.62857413]
[1756789183986,26.0,203.37,203.32,0.71]
[1756789184384,0.29,203.4,203.32,0.71]
[1756789184583,12.28811743,203.45,203.33,13.59559401]
[1756789184887,26.29,203.42,203.34,0.71]
[1756789185069,26.0,203.4,203.34,0.71]
[1756789185465,26.0,203.4,203.33,13.59559401]
[1756789185681,0.29,203.39,203.33,13.59559401]
[1756789185885,0.29,203.39,203.33,14.30559401]
[1756789186466,0.29,203.39,203.34,0.71]
[1756789186874,30.91655405,203.4,203.34,0.71]
[1756789187189,40.840873,203.43,203.35,13.59559401]
[1756789187365,26.35,203.43,203.36,0.71]
[1756789187561,31.26573279,203.43,203.36,0.71]
[1756789188680,0.29,203.42,203.36,0.71]
[1756789189793,4.91617914,203.41,203.36,0.71]
[1756789190695,4.91617914,203.41,203.37,0.71]
[1756789190896,4.91593746,203.42,203.37,0.71]
[1756789191076,4.91593746,203.42,203.38,0.71]
[1756789192398,4.91593746,203.42,203.35,18.51319034]
[1756789192696,5.20593746,203.42,203.36,0.71]
[1756789193067,0.29,203.41,203.36,0.71]
[1756789193293,0.29,203.4,203.35,74.0]
[1756789193478,0.29,203.39,203.35,74.0]
[1756789193672,0.29,203.38,203.33,0.71]
[1756789193875,26.0,203.39,203.34,0.71]
[1756789194076,26.29,203.39,203.34,0.71]
[1756789194689,4.91690431,203.38,203.34,0.71]
[1756789196172,4.91690431,203.38,203.32,0.71]
[1756789196373,26.0,203.35,203.29,15.491602]
[1756789196691,5.20787154,203.34,203.29,88.781602]
[1756789196871,5.20787154,203.34,203.29,74.0]
[1756789197071,0.29,203.33,203.29,74.0]
[1756789197295,0.29,203.33,203.27,0.71]
[1756789198079,38.08,203.33,203.27,0.71]
[1756789198993,26.29,203.35,203.27,5.62951969]
[1756789199187,38.08,203.37,203.28,17.79694222]
[1756789199386,38.08,203.37,203.29,0.71]
[1756789200000,0.29,203.36,203.29,0.71]
[1756789200174,5.20747979,203.36,203.29,79.62892183]
[1756789200475,64.37,203.37,203.3,0.71]
[1756789200671,26.0,203.37,203.3,0.71]
[1756789200872,38.08,203.39,203.31,13.59559401]
[1756789201090,38.1,203.4,203.32,0.71]
[1756789202385,26.0,203.41,203.33,4.91811341]
[1756789202589,26.0,203.41,203.34,0.71]
[1756789202777,64.08,203.41,203.34,0.71]
[1756789203398,26.0,203.41,203.34,0.71]
[1756789203585,64.1,203.41,203.34,0.71]
[1756789203986,26.0,203.41,203.34,0.71]
[1756789204512,26.0,203.41,203.35,4.9176297]
[1756789204696,26.0,203.41,203.36,0.71]
[1756789205202,26.0,203.41,203.36,0.67]
[1756789205582,26.0,203.41,203.36,74.67]
[1756789205784,26.0,203.41,203.36,74.0]
[1756789205983,26.0,203.41,203.37,0.67]
[1756789207901,26.0,203.41,203.37,4.91712429]
[1756789208109,26.0,203.41,203.38,0.67]
[1756789208918,26.0,203.41,203.37,4.91712429]
[1756789209119,26.0,203.41,203.38,0.67]
[1756789209493,26.0,203.41,203.39,0.67]
[1756789209696,26.0,203.41,203.37,0.67]
[1756789210000,26.0,203.41,203.38,0.67]
[1756789210895,0.29,203.4,203.33,0.67]
[1756789211112,26.0,203.38,203.33,0.67]
[1756789211793,26.0,203.38,203.32,4.91813868]
[1756789211794,26.0,203.38,203.34,0.67]
[1756789211995,26.0,203.38,203.34,74.67]
[1756789212191,0.35,203.42,203.35,0.67]
[1756789212391,26.0,203.41,203.35,0.67]
[1756789213302,26.0,203.41,203.36,4.91738788]
[1756789213502,26.29,203.41,203.36,5.58738788]
[1756789214487,26.29,203.41,203.36,0.67]
[1756789214716,0.29,203.4,203.32,0.67]
[1756789215009,26.29,203.39,203.32,0.67]
[1756789215202,26.29,203.39,203.31,33.29506341]
[1756789215405,38.39,203.38,203.29,0.67]
[1756789215596,38.39,203.38,203.28,28.37938101]
[1756789215819,0.29,203.37,203.28,28.37938101]
[1756789216034,0.29,203.36,203.28,29.04938101]
[1756789216538,0.29,203.36,203.29,0.67]
[1756789216713,4.91723816,203.37,203.3,4.91883915]
[1756789217036,38.12,203.37,203.31,0.67]
[1756789217735,38.12,203.37,203.31,74.67]
[1756789217936,0.06,203.38,203.32,0.67]
[1756789219222,4.97696308,203.38,203.32,0.67]
[1756789220753,26.0,203.37,203.32,5.58820408]
[1756789220938,26.0,203.37,203.32,4.91820408]
[1756789221250,26.0,203.37,203.33,0.67]
[1756789221425,26.0,203.37,203.34,0.67]
[1756789221622,0.06,203.38,203.34,0.67]
[1756789222428,0.06,203.38,203.35,0.67]
[1756789223952,0.06,203.38,203.36,4.91738788]
[1756789224128,0.06,203.38,203.37,0.67]
[1756789224945,0.06,203.41,203.4,26.0]
[1756789225121,0.06,203.41,203.4,42.49786835]
[1756789225317,0.06,203.41,203.4,14.26559401]
[1756789225521,0.06,203.41,203.4,16.23540701]
[1756789225723,0.06,203.41,203.4,21.15182785]
[1756789225942,0.06,203.41,203.4,1.969813]
[1756789226445,0.06,203.41,203.4,2.639813]
[1756789226644,0.06,203.41,203.4,6.88623384]
[1756789226829,0.06,203.41,203.4,2.639813]
[1756789227647,0.06,203.41,203.4,1.969813]
[1756789228034,0.06,203.41,203.4,75.969813]
[1756789228236,0.06,203.41,203.4,76.639813]
[1756789228944,0.06,203.41,203.37,0.67]
[1756789229334,0.06,203.41,203.37,2.640492]
[1756789229731,0.06,203.41,203.38,0.67]
[1756789229937,0.06,203.41,203.39,18.51225657]
[1756789230136,0.06,203.41,203.4,0.67]
[1756789231744,0.06,203.41,203.4,14.26559401]
[1756789231931,0.06,203.41,203.4,93.18201485]
[1756789232132,0.06,203.41,203.4,95.41428919]
[1756789232448,0.06,203.41,203.4,133.63428919]
[1756789233459,0.06,203.41,203.4,131.40201485]
[1756789233952,0.06,203.41,203.4,133.63428919]
[1756789234744,0.06,203.41,203.4,135.60410219]
[1756789234952,0.06,203.41,203.4,133.39182785]
[1756789235136,0.06,203.41,203.4,95.15182785]
[1756789235342,0.06,203.41,203.4,133.37182785]
[1756789235542,0.06,203.41,203.4,75.969813]
[1756789236058,0.41,203.41,203.4,1.969813]
[1756789236242,0.41,203.41,203.37,38.24]
[1756789236445,0.41,203.41,203.36,38.24]
[1756789236643,0.41,203.41,203.36,38.9]
[1756789236849,0.41,203.41,203.36,0.66]
[1756789237048,0.41,203.41,203.23,0.03]
[1756789237049,0.35,203.4,203.23,0.03]
[1756789237351,26.35,203.39,203.31,15.437961]
[1756789237654,0.35,203.38,203.31,0.66]
[1756789237856,0.35,203.38,203.27,4.91956511]
[1756789237857,0.35,203.37,203.3,0.66]
[1756789238029,4.91738788,203.36,203.3,0.66]
[1756789238832,5.26716411,203.37,203.3,0.66]
[1756789239053,5.26716411,203.37,203.3,74.66]
[1756789239251,5.26716411,203.37,203.31,0.66]
[1756789239755,26.0,203.38,203.31,0.66]
[1756789240053,30.91691529,203.38,203.31,0.66]
[1756789240258,30.91691529,203.38,203.31,5.57853199]
[1756789240450,30.91691529,203.38,203.32,0.66]
[1756789241239,0.35,203.37,203.3,74.0]
[1756789241440,0.35,203.37,203.31,0.66]
[1756789241642,30.91691529,203.38,203.31,0.66]
[1756789242336,31.26691529,203.38,203.31,0.66]
[1756789243436,31.26691529,203.38,203.31,5.57859361]
[1756789243642,31.26691529,203.38,203.31,0.66]
[1756789245263,0.35,203.37,203.31,0.66]
[1756789245856,4.91738788,203.36,203.31,0.66]
[1756789246862,4.91714608,203.37,203.32,0.66]
[1756789247062,31.26692459,203.38,203.32,0.66]
[1756789247366,31.26692459,203.38,203.32,74.66]
[1756789248270,26.35,203.38,203.32,74.66]
[1756789249075,31.26698174,203.38,203.32,74.66]
[1756789250473,31.26698174,203.38,203.32,0.66]
[1756789251674,31.26698174,203.38,203.32,0.69]
[1756789251976,31.26698174,203.38,203.32,5.60835276]
[1756789252174,0.06,203.41,203.33,38.84]
[1756789252567,0.06,203.41,203.34,0.66]
[1756789252951,0.41,203.41,203.34,0.66]
[1756789253357,0.41,203.41,203.34,74.66]
[1756789253559,0.41,203.41,203.35,0.66]
[1756789253762,0.41,203.41,203.35,5.5775815]
[1756789254183,5.32625886,203.41,203.35,5.5775815]
[1756789254365,5.32625886,203.41,203.35,0.66]
[1756789256475,0.35,203.4,203.34,74.0]
[1756789256663,26.0,203.38,203.32,0.69]
[1756789257169,26.35,203.38,203.32,0.69]
[1756789258488,4.91714608,203.37,203.32,0.69]
[1756789259064,4.91714608,203.37,203.33,0.66]
[1756789259588,4.91714608,203.37,203.33,74.66]
[1756789261886,26.0,203.38,203.34,0.66]
[1756789262185,26.0,203.38,203.35,0.66]
[1756789262364,31.26700075,203.38,203.33,74.0]
[1756789262556,31.26700075,203.38,203.33,74.66]
[1756789262957,31.26700075,203.38,203.33,74.0]
[1756789263158,26.0,203.37,203.33,74.66]
[1756789263678,30.91727534,203.37,203.33,74.66]
[1756789263885,4.916446,203.4,203.34,0.66]
[1756789264101,64.24,203.41,203.34,0.66]
[1756789265201,0.06,203.41,203.34,38.84]
[1756789265487,0.06,203.41,203.36,4.91738788]
[1756789265688,0.06,203.41,203.37,13.59559401]
[1756789265864,0.06,203.41,203.38,41.66651758]
[1756789266193,0.06,203.41,203.39,17.08211159]
[1756789266361,0.06,203.41,203.39,17.75211159]
[1756789266563,0.06,203.41,203.4,4.15651758]
[1756789267392,0.06,203.41,203.4,0.67]
[1756789267686,0.06,203.41,203.4,5.58642084]
[1756789267892,0.06,203.41,203.4,0.67]
[1756789268069,0.06,203.41,203.4,38.2]
[1756789268389,0.06,203.41,203.4,38.87]
[1756789268688,0.06,203.41,203.4,112.87]
[1756789269067,0.06,203.41,203.4,74.67]
[1756789269982,0.06,203.41,203.4,74.0]
[1756789270700,0.06,203.41,203.38,0.67]
[1756789270877,0.06,203.41,203.37,38.18]
[1756789271065,0.06,203.41,203.39,0.67]
[1756789271694,0.06,203.41,203.4,0.67]
[1756789273688,0.06,203.41,203.4,74.67]
[1756789274193,0.06,203.41,201.85,77.49629675]
[1756789274194,0.41,203.41,203.34,0.67]
[1756789274676,0.41,203.41,203.34,40.820492]
[1756789274873,0.41,203.41,203.34,38.85]
[1756789275266,26.0,203.39,203.32,0.03]
[1756789275467,26.0,203.39,203.33,0.67]
[1756789276073,30.91690431,203.38,203.32,0.03]
[1756789276300,31.26690431,203.38,203.32,0.03]
[1756789276677,30.91690431,203.38,203.32,0.7]
[1756789276879,26.0,203.37,203.32,5.61816869]
[1756789277096,4.97623255,203.41,203.33,17.75211159]
[1756789277298,4.97623255,203.41,203.34,0.67]
[1756789277671,0.35,203.4,203.32,74.7]
[1756789277992,26.0,203.38,203.32,74.7]
[1756789278195,4.91714608,203.37,203.32,74.7]
[1756789278394,4.91714608,203.37,203.33,0.67]
[1756789278981,4.91714608,203.37,203.32,74.03]
[1756789279201,30.91692749,203.38,203.33,0.67]
[1756789279583,30.91692749,203.38,203.34,0.67]
[1756789279788,64.63,203.41,203.34,0.67]
[1756789280392,0.35,203.4,203.34,0.67]
[1756789280589,5.26642084,203.4,203.32,74.7]
[1756789281001,5.26642084,203.4,203.33,0.67]
[1756789281886,0.06,203.41,203.33,5.58803029]
[1756789282087,26.06,203.41,203.34,0.67]
[1756789282404,30.97624004,203.41,203.34,0.67]
[1756789283399,0.35,203.4,203.32,74.03]
[1756789283608,0.35,203.39,203.32,74.03]
[1756789284106,0.35,203.39,203.32,74.7]
[1756789284107,4.91690431,203.38,203.32,74.7]
[1756789285282,4.91690431,203.38,203.32,74.03]
[1756789285489,4.91690431,203.38,203.33,0.67]
[1756789286118,0.35,203.38,203.33,0.67]
[1756789286299,26.0,203.37,203.33,0.67]
[1756789287896,26.0,203.37,203.32,74.03]
[1756789288095,30.91715862,203.37,203.34,0.67]
[1756789288612,30.91715862,203.37,203.32,74.7]
[1756789288806,30.91715862,203.37,203.33,0.67]
[1756789289013,4.91696814,203.38,203.34,0.67]
[1756789289309,30.91696814,203.38,203.34,0.67]
[1756789289509,26.0,203.38,203.35,0.67]
[1756789289713,26.0,203.38,203.33,0.7]
[1756789289889,0.06,203.39,203.34,0.67]
[1756789290309,0.06,203.39,203.35,0.67]
[1756789290510,0.06,203.39,203.36,0.67]
[1756789290909,0.06,203.39,203.33,4.94795397]
[1756789291107,0.06,203.39,203.35,0.67]
[1756789292220,0.06,203.39,203.33,0.03]
[1756789292397,0.06,203.39,203.33,0.7]
[1756789293214,26.0,203.37,203.33,0.03]
[1756789293616,26.0,203.37,203.33,0.7]
[1756789294624,26.0,203.36,203.33,0.03]
[1756789295219,30.91726501,203.37,203.33,0.03]
[1756789295425,26.0,203.37,203.33,0.73]
[1756789296113,26.0,203.37,203.34,0.7]
[1756789296320,0.06,203.39,203.34,0.7]
[1756789296525,0.06,203.39,203.35,0.7]
[1756789297204,0.06,203.39,203.34,4.91768517]
[1756789297428,26.06,203.39,203.34,5.61768517]
[1756789297629,26.06,203.39,203.35,0.7]
[1756789297829,26.06,203.39,203.36,0.7]
[1756789298124,26.41,203.39,203.33,74.73]
[1756789298425,26.06,203.39,203.33,74.73]
[1756789299107,4.91690431,203.38,203.33,74.03]
[1756789299314,4.91690431,203.38,203.33,0.03]
[1756789299315,0.35,203.37,203.33,0.03]
[1756789299527,4.97670064,203.39,203.33,0.03]
[1756789299730,26.0,203.38,203.34,0.7]
[1756789300614,26.0,203.38,203.33,0.03]
[1756789300812,26.0,203.38,203.33,0.73]
[1756789301233,4.91714608,203.37,203.33,0.03]
[1756789301421,26.0,203.34,203.33,0.03]
[1756789301905,26.35,203.34,203.33,0.03]
[1756789303024,26.0,203.33,203.3,0.03]
[1756789303216,4.9183553,203.32,203.3,0.03]
[1756789303418,38.26,203.31,203.3,0.03]
[1756789303815,38.61,203.31,203.3,0.03]
[1756789304828,38.61,203.31,203.29,0.03]
[1756789305208,4.91883915,203.3,203.29,0.03]
[1756789305616,5.26883915,203.3,203.29,0.03]
[1756789306341,26.0,203.27,203.23,0.03]
[1756789306637,38.26,203.26,203.23,0.03]
[1756789307045,38.61,203.26,203.23,0.03]
[1756789307245,5.27019232,203.25,203.23,0.03]
[1756789307619,4.92019232,203.25,203.23,0.03]
[1756789308319,30.92029128,203.24,203.23,0.03]
[1756789309617,30.92029128,203.24,203.2,0.73]
[1756789309618,31.27029128,203.24,203.2,0.03]
[1756789309937,26.0,203.21,203.2,0.03]
[1756789310329,30.92101766,203.21,203.2,0.03]
[1756789311746,31.27101766,203.21,203.2,0.03]
[1756789312647,31.27101766,203.21,203.18,0.03]
[1756789312945,64.61,203.2,203.18,0.03]
[1756789313319,0.35,203.19,203.18,0.03]
[1756789313829,64.28,203.19,203.18,0.03]
[1756789314041,64.63,203.19,203.18,0.03]
[1756789314436,69.55150204,203.19,203.18,0.03]
[1756789314639,5.27150204,203.19,203.18,0.03]
[1756789314843,45.52481304,203.19,203.18,0.03]
[1756789315351,6.89481304,203.19,203.18,0.03]
[1756789315550,45.17481304,203.19,203.18,0.03]
[1756789316046,45.52481304,203.19,203.18,0.03]
[1756789318457,45.17481304,203.19,203.18,0.03]
[1756789319845,45.52481304,203.19,203.18,0.03]
[1756789320252,45.52481304,203.19,203.13,0.7]
[1756789320253,26.0,203.16,203.13,0.7]
[1756789320453,26.0,203.15,203.13,0.7]
[1756789320670,26.0,203.15,203.14,0.7]
[1756789320950,30.92247108,203.15,203.14,0.7]
[1756789321340,30.92247108,203.15,203.12,0.2]
[1756789321649,38.26,203.14,203.13,0.7]
[1756789321854,38.26,203.14,203.12,0.2]
[1756789322029,30.92247108,203.15,203.12,0.2]
[1756789322236,38.34,203.14,203.13,0.7]
[1756789322536,3.8826679,203.21,203.14,0.7]
[1756789322744,26.0,203.2,203.14,0.7]
[1756789322929,38.4,203.19,203.14,0.7]
[1756789323136,38.4,203.2,203.16,3.48651758]
[1756789323326,4.92077551,203.22,203.17,0.7]
[1756789323533,4.9200492,203.25,203.19,3.48651758]
[1756789323733,38.42,203.24,203.2,0.7]
[1756789323960,26.0,203.21,203.18,3.48651758]
[1756789324454,38.42,203.23,203.19,4.18651758]
[1756789324631,38.42,203.23,203.2,0.7]
[1756789324832,43.34054509,203.23,203.21,0.7]
[1756789325032,43.34054509,203.23,203.22,0.7]
[1756789326346,26.0,203.24,203.22,0.7]
[1756789326548,38.4,203.23,203.22,0.7]
[1756789326748,26.0,203.24,203.19,77.48651758]
[1756789326942,38.4,203.24,203.19,77.48651758]
[1756789327144,26.0,203.25,203.21,3.48651758]
[1756789327340,38.4,203.25,203.22,0.68]
[1756789327846,38.4,203.25,203.19,74.0]
[1756789327847,38.4,203.25,203.23,0.68]
[1756789328153,38.42,203.25,203.23,0.68]
[1756789328461,4.92029128,203.24,203.23,0.68]
[1756789328628,43.34008458,203.25,203.24,0.68]
[1756789328834,4.91979307,203.27,203.24,0.68]
[1756789329049,38.44,203.26,203.24,0.68]
[1756789329747,38.5,203.26,203.19,74.0]
[1756789329947,38.5,203.26,203.2,0.68]
[1756789330450,4.9200492,203.25,203.2,0.68]
[1756789330648,26.0,203.21,203.19,74.0]
[1756789330856,38.44,203.2,203.15,0.68]
[1756789331458,38.44,203.2,203.16,0.68]
[1756789332668,4.92150204,203.19,203.16,0.68]
[1756789333366,26.0,203.17,203.14,0.03]
[1756789333568,64.44,203.17,203.14,0.03]
[1756789334471,4.92222878,203.16,203.14,0.03]
[1756789335373,38.44,203.15,203.14,0.03]
[1756789336656,45.33597708,203.15,203.14,0.03]
[1756789337279,45.68597708,203.15,203.14,0.03]
[1756789338952,45.33597708,203.15,203.14,0.03]
[1756789339151,43.34247108,203.15,203.14,0.03]
[1756789339475,45.31597708,203.15,203.14,0.03]
[1756789339676,6.89597708,203.15,203.14,0.03]
[1756789339985,30.92247108,203.15,203.14,0.03]
[1756789340176,69.34247108,203.15,203.14,0.03]
[1756789340564,4.92247108,203.15,203.14,0.03]
[1756789340770,26.0,203.16,203.14,0.71]
[1756789340970,64.42,203.16,203.14,0.71]
[1756789341167,0.35,203.24,203.14,2.94524865]
[1756789341373,55.64186684,203.23,203.15,0.68]
[1756789341677,26.0,203.2,203.15,0.68]
[1756789341884,64.46,203.2,203.15,0.68]
[1756789342272,26.0,203.2,203.15,0.68]
[1756789342480,1.972825,203.22,203.15,2.91524865]
[1756789342777,38.46,203.21,203.16,2.91524865]
[1756789342979,4.92055062,203.23,203.17,2.91524865]
[1756789343171,38.46,203.22,203.18,0.68]
[1756789343561,26.0,203.22,203.18,0.68]
[1756789343778,4.92024209,203.25,203.18,2.91524865]
[1756789344079,38.46,203.23,203.19,0.68]
[1756789344258,38.46,203.23,203.2,0.68]
[1756789344960,43.38073425,203.23,203.2,0.68]
[1756789345157,4.92073425,203.23,203.15,4.92246171]
[1756789345361,43.38073425,203.23,203.16,0.68]
[1756789347473,0.06,203.22,203.16,0.68]
[1756789348083,0.06,203.22,203.16,74.68]
[1756789348287,0.06,203.22,203.17,0.68]
[1756789348480,0.06,203.22,203.18,0.68]
[1756789348878,0.06,203.22,203.19,0.68]
[1756789349492,0.06,203.22,203.2,0.68]
[1756789351289,0.06,203.22,203.19,2.23524865]
[1756789351490,0.06,203.22,203.21,0.68]
[1756789352373,0.06,203.22,203.19,0.68]
[1756789352595,0.06,203.22,203.17,0.68]
[1756789352799,0.06,203.22,203.18,0.68]
[1756789353096,0.06,203.22,203.19,0.68]
[1756789353473,0.06,203.22,203.2,0.68]
[1756789353991,0.06,203.22,203.21,0.68]